bitfinex-derivatives/quotes_ETHF0:USTF0_20250910
["timestamp","ask_amount","ask_price","bid_price","bid_amount"]
[1757494091996,1.20522528,4334.8,4334.7,0.80906925]
[1757494092599,0.99052528,4334.8,4334.7,0.80906925]
[1757494092799,0.78312528,4334.8,4334.7,0.80906925]
[1757494093501,0.99052528,4334.8,4334.7,0.80906925]
[1757494095801,0.99052528,4334.8,4334.7,0.84074328]
[1757494097404,1.20522528,4334.8,4334.7,0.84074328]
[1757494097603,1.45102528,4334.8,4334.7,0.12394328]
[1757494097992,1.45102528,4334.8,4334.7,0.42704328]
[1757494098199,1.45102528,4334.8,4334.1,0.3031]
[1757494098499,0.6572,4334.2,4334.1,0.3031]
[1757494098690,1.28052528,4334.2,4334.1,0.5136]
[1757494098893,0.83712528,4334.2,4334.1,0.7238]
[1757494099391,1.06772528,4334.2,4334.1,0.7238]
[1757494102804,0.2306,4334.2,4334.1,4.7238]
[1757494103398,0.2306,4334.2,4334.1,4.75547402]
[1757494103604,0.642,4334.2,4334.1,0.75547402]
[1757494103804,1.27188464,4334.2,4334.1,0.75547402]
[1757494104006,1.07428464,4334.2,4334.1,0.75547402]
[1757494105903,1.27188464,4334.2,4334.1,0.75547402]
[1757494108515,0.86048464,4334.2,4334.1,0.75547402]
[1757494108819,0.2306,4334.2,4334.1,0.75547402]
[1757494110921,0.4444,4334.2,4334.1,0.75547402]
[1757494111523,0.8881,4334.2,4334.1,0.33477402]
[1757494111820,1.51807739,4334.2,4334.1,0.33477402]
[1757494116021,1.51792656,4334.2,4334.1,0.33477402]
[1757494117621,1.51792656,4334.2,4334.1,0.54527402]
[1757494117820,1.27182656,4334.2,4334.1,0.75547402]
[1757494119431,0.86042656,4334.2,4334.1,0.75547402]
[1757494119728,0.2306,4334.2,4334.1,0.75547402]
[1757494128833,0.8603783,4334.2,4334.1,0.75547402]
[1757494130034,0.2306,4334.2,4334.1,1.17075402]
[1757494130228,0.2459,4335.4,4334.3,0.2942]
[1757494130426,0.62969474,4335.3,4334.8,0.03167402]
[1757494130627,0.2083,4334.9,4334.8,0.73677402]
[1757494130928,0.83799474,4334.9,4334.8,0.73677402]
[1757494131530,1.36299474,4334.9,4334.8,0.73677402]
[1757494133135,1.36299474,4334.9,4334.8,0.52107402]
[1757494134530,1.36299474,4334.9,4334.8,0.03167402]
[1757494134730,1.36299474,4334.9,4334.8,0.32587402]
[1757494134926,1.36299474,4334.9,4334.8,0.35754804]
[1757494135130,1.36299474,4334.9,4334.8,0.55274804]
[1757494136334,1.36299474,4334.9,4334.8,0.06334804]
[1757494139034,5.59368474,4334.9,4333.6,0.2942]
[1757494139229,0.2083,4333.7,4333.6,0.7051]
[1757494139630,0.83799474,4333.7,4333.6,0.7051]
[1757494139838,1.06869474,4333.7,4333.6,0.7051]
[1757494140337,0.2307,4333.7,4333.6,0.7051]
[1757494143443,0.2307,4333.7,4333.6,1.12043]
[1757494144640,0.2307,4333.7,4333.6,0.7051]
[1757494145844,0.6496,4333.7,4333.6,0.7051]
[1757494146441,0.439,4333.7,4333.6,0.7051]
[1757494150051,0.2307,4333.7,4333.6,0.7051]
[1757494150745,0.439,4333.7,4333.6,0.7051]
[1757494152442,0.2307,4333.7,4333.6,0.7051]
[1757494158941,0.438,4333.7,4333.6,0.7051]
[1757494164351,1.07225651,4333.7,4333.6,0.7051]
[1757494165755,1.59385651,4333.7,4333.6,0.7051]
[1757494166052,1.59385651,4333.7,4333.6,0.4894]
[1757494166747,1.59385651,4333.7,4333.6,0.2942]
[1757494166954,1.59385651,4333.7,4333.1,0.3158]
[1757494167247,0.2073,4333.2,4333.1,0.7169]
[1757494168253,0.438,4333.2,4333.1,0.7169]
[1757494170648,0.652,4333.2,4333.1,0.7169]
[1757494170849,1.5944208,4333.2,4333.1,0.7169]
[1757494171048,1.0728208,4333.2,4333.1,0.7169]
[1757494173655,0.438,4333.2,4333.1,0.7169]
[1757494173854,0.2307,4333.2,4333.1,0.7169]
[1757494174761,0.438,4333.2,4333.1,0.7169]
[1757494175059,0.2307,4333.2,4333.1,0.7169]
[1757494176559,0.3076,4333.9,4333.1,0.7169]
[1757494176758,0.3076,4334.1,4333.8,0.3158]
[1757494176956,0.5149,4334.1,4334.0,0.8344]
[1757494177658,0.0633,4335.5,4334.0,0.8344]
[1757494177963,0.7289,4334.6,4334.5,0.21504526]
[1757494178155,1.36258591,4334.6,4334.5,0.53084526]
[1757494180163,1.36258591,4334.6,4334.5,0.72714526]
[1757494181563,0.63368591,4334.6,4334.5,0.84464526]
[1757494181758,0.5149,4335.1,4335.0,0.5186]
[1757494181964,0.5149,4335.1,4335.0,0.84464526]
[1757494183060,0.7289,4335.1,4335.0,0.84464526]
[1757494183365,0.7289,4335.1,4335.0,0.72714526]
[1757494184668,0.7289,4335.1,4335.0,2.55764269]
[1757494185966,0.7289,4335.1,4335.0,2.5696139]
[1757494188273,0.7289,4335.1,4335.0,0.02221647]
[1757494191378,1.3645108,4335.1,4335.0,0.02221647]
[1757494192482,5.3645108,4335.1,4335.0,0.02221647]
[1757494193383,5.5975108,4335.1,4335.0,0.02221647]
[1757494193583,1.3645108,4335.1,4335.0,0.55111647]
[1757494197185,1.3645108,4335.1,4335.0,0.02221647]
[1757494200686,1.3645108,4335.1,4335.0,0.55111647]
[1757494200986,1.3645108,4335.1,4335.0,0.88831647]
[1757494201284,1.3645108,4335.1,4335.0,0.76301647]
[1757494202685,1.3645108,4335.1,4335.0,0.55111647]
[1757494203186,1.3645108,4335.1,4335.0,0.76301647]
[1757494204486,1.3645108,4335.1,4335.0,0.02221647]
[1757494205688,1.3645108,4335.1,4335.0,0.23031647]
[1757494205890,1.3645108,4335.1,4335.0,0.55111647]
[1757494206078,1.3645108,4335.1,4335.0,0.76301647]
[1757494206786,1.3645108,4335.1,4335.0,0.88831647]
[1757494207290,1.3645108,4335.1,4335.0,0.76301647]
[1757494208488,1.3645108,4335.1,4335.0,0.88831647]
[1757494209692,0.6356108,4335.1,4335.0,0.88831647]
[1757494210082,0.8506108,4335.1,4335.0,0.88831647]
[1757494210281,1.1669108,4335.1,4335.0,0.88831647]
[1757494210883,1.1669108,4335.1,4335.0,1.07650368]
[1757494212494,0.3163,4336.0,4335.0,5.07650368]
[1757494212701,0.5313,4336.0,4335.9,0.7408]
[1757494212990,1.37770203,4336.0,4335.9,0.7408]
[1757494213194,1.37770203,4336.0,4335.9,0.76301647]
[1757494214094,0.7405,4336.0,4335.9,0.76301647]
[1757494216002,0.8699,4336.0,4335.9,0.55111647]
[1757494216205,0.7405,4336.0,4335.9,0.76301647]
[1757494217299,1.4962016,4336.0,4335.9,0.02221647]
[1757494217895,1.4962016,4336.0,4335.9,0.54331647]
[1757494223005,1.4962016,4336.0,4335.9,0.02221647]
[1757494224606,1.7282016,4336.0,4335.9,0.33161647]
[1757494225006,1.7282016,4336.0,4335.9,0.02221647]
[1757494225407,1.7282016,4336.0,4335.9,0.33161647]
[1757494226110,1.4962016,4336.0,4335.9,0.54331647]
[1757494227306,1.4962016,4336.0,4335.9,0.02221647]
[1757494230416,0.8601,4336.0,4335.9,0.02221647]
[1757494230605,1.49660005,4336.0,4335.9,0.02221647]
[1757494231503,1.49660005,4336.0,4335.1,0.3094]
[1757494231708,0.5025,4334.7,4334.6,0.95137]
[1757494232005,0.1953,4334.7,4334.6,1.13244864]
[1757494232203,0.3072,4335.4,4334.7,0.3094]
[1757494232508,0.1196,4335.5,4335.2,0.5211]
[1757494232509,1.03462002,4335.3,4335.2,0.5211]
[1757494232909,1.34182002,4335.3,4335.2,0.5211]
[1757494237308,1.34182002,4335.3,4334.6,0.3094]
[1757494237508,0.3979,4334.8,4334.7,0.95138]
[1757494237717,0.7051,4334.8,4334.7,0.7207]
[1757494246022,0.1953,4334.8,4334.7,0.7207]
[1757494246924,0.3072,4335.4,4334.8,0.3162]
[1757494247119,0.7129,4335.4,4335.3,0.4163]
[1757494247321,1.3501383,4335.4,4335.3,0.7325]
[1757494247522,1.3501383,4335.4,4335.3,0.5212]
[1757494249522,1.3501383,4335.4,4334.6,0.3162]
[1757494249826,0.195,4334.7,4334.6,0.7325]
[1757494253229,0.5061,4334.7,4334.6,0.7325]
[1757494254829,0.195,4334.7,4334.6,0.7325]
[1757494255032,0.5061,4334.7,4334.6,0.7325]
[1757494256633,0.7168,4334.7,4334.6,0.7325]
[1757494257832,0.9349,4334.7,4334.6,0.7325]
[1757494258434,0.9349,4334.7,4334.6,0.5212]
[1757494258638,0.9349,4334.7,4334.3,1.88634022]
[1757494258639,0.4057,4334.4,4334.3,1.88634022]
[1757494258841,1.35502627,4334.4,4334.0,0.3162]
[1757494259140,0.63822627,4334.3,4334.2,0.205]
[1757494259334,0.4057,4334.3,4334.2,2.39079291]
[1757494259535,1.04392627,4334.3,4334.2,2.39079291]
[1757494259734,1.35502627,4334.3,4334.2,2.39079291]
[1757494260235,1.35502627,4334.3,4334.2,2.60209291]
[1757494260740,0.63822627,4334.3,4334.2,2.60209291]
[1757494261035,0.195,4334.3,4334.2,2.28589291]
[1757494261241,1.14432627,4334.3,4334.2,2.28589291]
[1757494261745,1.14432627,4334.3,4334.2,2.60209291]
[1757494262041,1.35502627,4334.3,4334.2,2.60209291]
[1757494264544,0.7242,4334.7,4334.6,0.7325]
[1757494264845,1.36216361,4334.7,4334.6,0.7325]
[1757494265032,1.57286361,4334.7,4334.6,0.7325]
[1757494267043,1.57286361,4334.7,4334.2,1.86959291]
[1757494267344,0.7168,4334.4,4334.3,0.5212]
[1757494267544,1.35476361,4334.4,4334.3,0.5212]
[1757494268648,1.35476361,4334.4,4334.3,0.7325]
[1757494270145,0.63796361,4334.4,4334.3,0.7325]
[1757494270344,0.5061,4335.0,4334.9,0.4163]
[1757494270648,1.57268514,4335.0,4334.9,0.7325]
[1757494271946,1.05088514,4335.0,4334.9,0.7325]
[1757494272146,1.57268514,4335.0,4334.9,0.7325]
[1757494274749,1.05088514,4335.0,4334.9,0.7325]
[1757494274939,1.36198514,4335.0,4334.9,0.7325]
[1757494275147,1.57268514,4335.0,4334.9,0.7325]
[1757494275547,0.85588514,4335.0,4334.9,0.7325]
[1757494275746,0.2181,4335.0,4334.9,0.7325]
[1757494279456,0.9447,4335.0,4334.9,0.7325]
[1757494279654,0.4203,4335.0,4334.9,0.7325]
[1757494280158,0.7286,4335.0,4334.9,0.7325]
[1757494281759,0.9447,4335.0,4334.9,0.5212]
[1757494282259,0.9447,4335.0,4334.9,0.7171]
[1757494283751,1.0714,4335.0,4334.9,0.5212]
[1757494284257,0.7266,4334.4,4334.3,0.6894]
[1757494284457,0.3083,4334.6,4334.4,0.2944]
[1757494284757,0.5105,4334.6,4334.5,0.5202]
[1757494285058,0.5105,4334.6,4334.5,0.8146]
[1757494285460,0.7266,4334.6,4334.5,0.6894]
[1757494286550,0.4183,4334.4,4334.3,0.4935]
[1757494286752,0.3083,4334.3,4334.0,0.4311]
[1757494287058,0.7266,4334.1,4334.0,0.7255]
[1757494287255,0.7266,4334.1,4332.5,2.95194376]
[1757494287256,0.1267,4334.0,4333.5,0.2944]
[1757494287459,0.1267,4334.0,4332.0,0.1252]
[1757494287460,0.1267,4333.0,4332.6,0.2944]
[1757494287658,0.1267,4333.0,4332.0,0.1252]
[1757494287659,0.3083,4332.6,4332.0,0.1252]
[1757494287857,0.7266,4332.1,4332.0,0.6894]
[1757494288559,0.5105,4331.2,4331.1,0.6894]
[1757494288856,0.3083,4331.9,4331.1,0.395]
[1757494289058,0.3083,4331.9,4331.2,0.2944]
[1757494289759,0.1267,4332.0,4331.6,0.2944]
[1757494289760,0.7266,4332.0,4331.6,0.2944]
[1757494289955,0.1267,4332.0,4331.3,0.395]
[1757494290260,0.2022,4331.5,4331.4,0.6894]
[1757494290463,0.5105,4331.5,4331.4,0.6894]
[1757494291163,0.2022,4331.5,4331.4,0.6894]
[1757494292262,0.5105,4331.8,4331.7,0.6894]
[1757494292457,0.1267,4332.0,4331.1,0.41556]
[1757494292458,0.7266,4331.2,4331.1,1.85541605]
[1757494292657,0.7266,4331.2,4331.1,2.54481605]
[1757494292866,0.7266,4331.2,4331.1,0.6894]
[1757494293553,0.9574,4331.2,4331.1,0.6894]
[1757494295365,0.2308,4331.2,4331.1,0.6894]
[1757494295557,0.9574,4331.2,4331.1,0.395]
[1757494295761,0.9574,4331.2,4331.1,0.6894]
[1757494296257,0.2308,4331.2,4331.1,0.6894]
[1757494296859,0.433,4331.2,4331.1,0.6894]
[1757494298066,0.6491,4331.2,4331.1,0.6894]
[1757494298260,0.433,4331.2,4331.1,0.6894]
[1757494298457,0.7413,4331.2,4331.1,0.6894]
[1757494299964,0.433,4331.2,4331.1,0.6894]
[1757494300167,0.7413,4331.2,4331.1,0.6894]
[1757494300363,0.9574,4331.2,4330.7,2.15552814]
[1757494300567,0.5244,4331.1,4331.0,0.6894]
[1757494300770,0.7266,4331.1,4331.0,0.6894]
[1757494300969,0.7266,4331.1,4331.0,0.8146]
[1757494301174,0.2308,4331.2,4331.0,0.8146]
[1757494301366,0.433,4331.2,4331.1,0.6894]
[1757494301568,0.7413,4331.2,4331.1,0.6894]
[1757494304078,0.9574,4331.2,4331.1,0.6894]
[1757494306776,0.9574,4331.2,4331.1,0.4935]
[1757494306977,0.6491,4331.2,4330.8,0.3006]
[1757494307178,0.4061,4330.9,4330.8,0.517]
[1757494307377,0.6996,4330.9,4330.8,0.517]
[1757494308478,0.6996,4330.9,4330.8,0.7163]
[1757494309377,0.6996,4331.1,4331.0,0.7163]
[1757494309573,0.6996,4331.1,4331.0,0.517]
[1757494310082,0.6996,4331.1,4331.0,0.7163]
[1757494311076,0.6996,4331.1,4331.0,0.517]
[1757494312078,0.6996,4331.1,4331.0,0.2164]
[1757494312379,0.6996,4330.8,4330.7,2.37892414]
[1757494312577,0.6996,4330.8,4330.7,0.517]
[1757494313585,0.2935,4330.7,4330.5,0.3006]
[1757494313880,0.4949,4330.1,4330.0,0.5409]
[1757494314081,0.4949,4330.1,4330.0,0.72525162]
[1757494314286,0.4949,4330.1,4330.0,1.02585162]
[1757494314478,0.2014,4330.1,4330.0,0.8415]
[1757494315678,0.2309,4330.1,4330.0,0.8415]
[1757494315984,0.2309,4330.1,4330.0,2.71253449]
[1757494316185,0.2309,4330.1,4330.0,0.8415]
[1757494316383,0.20868353,4330.1,4330.0,4.8415]
[1757494316575,0.2935,4331.4,4330.1,0.3006]
[1757494316783,0.2935,4331.2,4330.1,0.3006]
[1757494317089,0.5322,4331.0,4330.9,0.2164]
[1757494317387,1.16950744,4331.0,4330.9,0.2164]
[1757494317589,1.46300744,4331.0,4330.0,0.77487]
[1757494317888,1.33690744,4330.9,4330.8,0.2164]
[1757494318188,1.33690744,4330.9,4330.8,0.7163]
[1757494320187,1.13220744,4330.9,4330.8,0.7163]
[1757494320388,0.63730744,4330.9,4330.8,0.7163]
[1757494320584,0.63730744,4330.9,4330.8,0.4157]
[1757494321184,0.63730744,4330.9,4330.8,0.7163]
[1757494322388,1.13220744,4330.9,4330.8,0.7163]
[1757494324189,1.33690744,4330.9,4330.8,0.7163]
[1757494325884,0.63730744,4330.9,4330.8,0.7163]
[1757494326189,1.13220744,4330.9,4330.8,0.7163]
[1757494328087,1.33690744,4330.9,4330.8,0.7163]
[1757494328291,1.32493538,4330.9,4330.8,0.7163]
[1757494329294,1.32493538,4330.9,4330.8,0.2164]
[1757494332097,1.32493538,4330.9,4330.8,0.517]
[1757494332298,1.32493538,4330.9,4330.8,0.7163]
[1757494336702,1.32493538,4330.9,4330.8,0.4157]
[1757494337003,1.32493538,4330.9,4330.8,0.7163]
[1757494337704,1.32493538,4330.9,4330.8,0.4157]
[1757494339401,1.32493538,4330.9,4330.8,0.2164]
[1757494340206,0.6996,4330.9,4330.8,0.5263]
[1757494340506,0.6996,4330.9,4330.8,0.2164]
[1757494340801,0.3106,4330.8,4330.2,0.3099]
[1757494341007,0.5186,4330.3,4330.2,0.7228]
[1757494341506,0.1261,4331.0,4330.3,0.3099]
[1757494341707,0.7231,4330.9,4330.8,0.2086]
[1757494341895,0.7231,4330.9,4330.2,0.54081]
[1757494342103,0.7231,4330.8,4330.7,0.2086]
[1757494342406,0.4125,4330.1,4330.0,0.4426]
[1757494342603,0.7231,4330.1,4330.0,0.234]
[1757494342808,0.7231,4330.1,4330.0,0.7525]
[1757494343603,0.7231,4330.1,4330.0,0.9568]
[1757494344307,0.7231,4330.1,4328.8,0.04016627]
[1757494344308,0.4125,4329.8,4329.7,0.7228]
[1757494344507,0.7231,4329.8,4329.7,0.7228]
[1757494344916,0.5186,4329.8,4329.7,0.7228]
[1757494346821,0.7231,4329.8,4329.7,0.7228]
[1757494349526,0.7231,4330.4,4330.3,0.7228]
[1757494350028,0.7231,4330.4,4330.3,0.4129]
[1757494350226,0.7231,4330.4,4330.3,0.2086]
[1757494350428,0.7231,4330.4,4330.3,0.5185]
[1757494350819,0.7231,4330.4,4330.0,0.3099]
[1757494351021,0.7231,4330.4,4329.6,0.3099]
[1757494352929,0.7231,4329.7,4329.6,0.5185]
[1757494353324,0.7231,4329.7,4329.6,0.7228]
[1757494357826,0.7231,4329.7,4329.6,0.4129]
[1757494358026,0.7231,4329.7,4329.4,0.5449]
[1757494358325,0.8437,4329.5,4329.4,0.7535]
[1757494358525,0.8437,4329.5,4329.4,0.9578]
[1757494359222,0.8437,4329.5,4329.4,1.14286688]
[1757494360230,0.8437,4329.5,4329.4,0.18506688]
[1757494360427,0.8437,4329.5,4329.4,0.5185]
[1757494360632,0.8437,4329.5,4329.4,0.7228]
[1757494361527,0.8437,4329.5,4329.4,0.4129]
[1757494361730,0.8437,4329.5,4328.8,0.41578]
[1757494361928,0.7231,4329.3,4328.6,0.3099]
[1757494362129,0.3106,4329.2,4329.0,0.3099]
[1757494362328,0.7231,4329.2,4329.1,0.2086]
[1757494362931,0.1206,4329.0,4328.9,0.234]
[1757494363235,0.8437,4329.0,4328.9,0.4426]
[1757494363432,0.8437,4329.0,4328.9,0.7525]
[1757494364239,0.8437,4329.0,4328.9,0.9568]
[1757494364430,0.8437,4329.0,4328.9,2.79911666]
[1757494365840,0.8437,4329.0,4328.9,0.2086]
[1757494366436,0.8437,4329.0,4328.9,0.5185]
[1757494367437,0.8437,4329.0,4328.9,0.2086]
[1757494368337,0.8437,4329.0,4328.9,0.5152]
[1757494368635,0.8437,4329.0,4328.9,0.2086]
[1757494369339,0.5331,4329.0,4328.7,0.5406]
[1757494369540,0.7221,4328.9,4328.8,0.2077]
[1757494370038,0.7221,4328.9,4328.7,0.234]
[1757494371042,0.7221,4328.9,4328.8,0.2077]
[1757494373238,0.8453,4328.5,4328.4,0.7176]
[1757494373442,0.8453,4328.5,4328.4,0.90386152]
[1757494377843,0.8453,4328.5,4328.4,0.7176]
[1757494378548,0.8453,4328.5,4328.4,0.2077]
[1757494379250,0.8453,4328.5,4328.4,0.5143]
[1757494379946,1.0762,4328.5,4328.4,0.7176]
[1757494380650,1.0762,4328.5,4328.4,0.411]
[1757494381049,1.0762,4328.5,4328.4,0.7176]
[1757494381642,1.0762,4328.5,4328.4,0.2077]
[1757494382843,1.0762,4328.5,4328.4,0.5143]
[1757494383045,1.0762,4328.5,4328.4,0.7176]
[1757494383949,0.953,4328.5,4328.4,0.7176]
[1757494384250,0.2309,4328.5,4328.4,0.7176]
[1757494385547,0.2309,4328.5,4328.4,0.9526]
[1757494386352,0.2309,4328.5,4328.4,5.18362999]
[1757494386855,0.2309,4328.5,4328.4,4.9526]
[1757494391449,0.5312,4328.5,4328.4,4.9526]
[1757494392652,0.2309,4328.5,4328.4,4.9526]
[1757494393957,0.7376,4328.5,4328.4,4.9526]
[1757494394558,0.2309,4328.5,4328.4,4.9526]
[1757494407766,0.059,4330.4,4328.4,4.9526]
[1757494407767,0.3171,4329.1,4328.9,0.41577]
[1757494407972,0.7302,4329.9,4329.8,0.7315]
[1757494408172,0.7302,4329.9,4329.8,0.9655]
[1757494438691,0.7302,4329.9,4329.8,0.234]
[1757494438892,1.36969764,4329.9,4329.8,0.234]
[1757494439188,5.05259764,4329.9,4328.6,0.3017]
[1757494439395,0.7246,4328.7,4328.6,0.5045]
[1757494439589,0.7246,4328.7,4328.6,0.7175]
[1757494439793,0.7246,4328.7,4328.6,0.9505]
[1757494442095,0.5149,4328.7,4328.6,0.9505]
[1757494442692,0.2149,4328.7,4328.6,0.9505]
[1757494444899,0.531,4328.9,4328.8,0.7175]
[1757494445199,0.3,4328.9,4328.8,0.7175]
[1757494445398,0.7246,4328.9,4328.8,0.7175]
[1757494452898,0.7246,4328.9,4328.8,0.233]
[1757494454610,0.7246,4328.9,4328.8,0.7375]
[1757494455310,0.7246,4328.9,4328.8,0.9505]
[1757494456004,0.7246,4328.9,4328.8,0.7375]
[1757494458514,0.7246,4328.9,4328.8,0.233]
[1757494459009,0.7246,4328.9,4328.5,0.3111]
[1757494459215,0.7246,4328.9,4328.7,0.3111]
[1757494459617,0.7246,4328.9,4328.6,0.233]
[1757494464323,0.7246,4328.9,4328.6,0.5441]
[1757494464521,0.3211,4328.8,4328.6,0.5441]
[1757494464718,0.4203,4328.8,4328.7,0.5255]
[1757494464914,0.7414,4328.8,4328.7,0.2144]
[1757494465419,0.7414,4328.8,4328.7,0.5255]
[1757494466624,0.9724,4328.8,4328.7,0.5255]
[1757494467619,0.9724,4328.8,4328.7,0.2144]
[1757494467826,0.9724,4328.8,4328.6,0.233]
[1757494468326,0.6513,4328.8,4328.6,0.5441]
[1757494468534,0.7414,4328.7,4328.6,0.5441]
[1757494468824,0.7414,4328.7,4328.6,0.233]
[1757494469325,0.7414,4328.7,4328.6,0.4474]
[1757494469622,0.3211,4328.6,4328.1,2.02018224]
[1757494469923,0.7414,4328.3,4328.2,0.7218]
[1757494474431,0.5341,4328.3,4328.2,0.7218]
[1757494477733,0.7414,4328.3,4328.2,0.7218]
[1757494478627,0.7414,4328.3,4328.2,0.2144]
[1757494479030,0.7414,4328.3,4328.2,0.7218]
[1757494480328,0.7414,4328.3,4327.9,0.233]
[1757494480528,0.7414,4328.3,4328.0,0.3111]
[1757494480728,0.4203,4328.3,4328.0,0.3111]
[1757494480923,0.7414,4328.2,4328.1,0.5255]
[1757494481235,0.9724,4328.2,4328.1,0.5255]
[1757494482430,0.9724,4328.2,4328.1,0.2144]
[1757494482631,0.1298,4328.0,4327.9,0.5441]
[1757494482827,0.8712,4328.0,4327.9,0.5441]
[1757494483028,0.8712,4328.0,4327.9,0.4474]
[1757494483234,0.8712,4328.0,4327.9,0.7585]
[1757494483426,0.8712,4328.0,4327.9,0.9548]
[1757494484435,0.7414,4328.0,4327.9,0.9548]
[1757494490439,0.2952,4328.1,4328.0,0.8421]
[1757494490737,0.506,4328.1,4328.0,0.8421]
[1757494491539,0.7014,4328.1,4328.0,0.8421]
[1757494491738,0.7014,4328.1,4327.9,0.233]
[1757494491943,0.8234,4328.0,4327.9,0.233]
[1757494492332,5.6944596,4328.0,4327.1,0.5416]
[1757494492640,0.506,4327.3,4327.2,0.714]
[1757494493243,0.7014,4327.3,4327.2,0.714]
[1757494493445,0.7014,4327.3,4327.2,0.2023]
[1757494494135,0.7014,4327.3,4327.1,0.233]
[1757494497340,0.6372,4327.2,4327.1,0.233]
[1757494497544,0.9324,4327.2,4327.1,0.233]
[1757494497748,0.9324,4327.2,4326.6,0.233]
[1757494497939,0.737,4327.2,4327.1,0.714]
[1757494498842,0.231,4327.2,4327.1,0.714]
[1757494499646,0.737,4327.2,4327.1,0.714]
[1757494501848,0.231,4327.2,4327.1,0.714]
[1757494502246,0.231,4327.2,4327.1,0.947]
[1757494504843,0.7014,4328.4,4328.3,0.2023]
[1757494505051,0.7014,4328.4,4328.3,0.5109]
[1757494505644,0.7014,4328.4,4328.3,0.714]
[1757494509352,0.1266,4329.0,4328.3,0.714]
[1757494509552,0.506,4328.4,4328.3,0.4054]
[1757494509753,0.7014,4328.4,4328.3,0.4054]
[1757494509953,0.7014,4328.4,4328.3,0.714]
[1757494532471,0.7014,4328.4,4328.0,0.3176]
[1757494532785,0.64817557,4328.3,4327.6,0.3176]
[1757494533077,0.5085,4327.7,4327.6,0.7188]
[1757494540180,0.2056,4327.7,4327.6,0.7188]
[1757494540378,0.231,4327.9,4327.7,0.3176]
[1757494540675,0.231,4327.9,4327.8,0.7188]
[1757494540887,0.3029,4328.4,4327.8,0.7188]
[1757494541085,0.3029,4328.9,4328.0,0.1205]
[1757494541286,0.5085,4328.2,4328.1,0.7188]
[1757494543188,0.7174,4328.2,4328.1,0.7188]
[1757494548292,0.5085,4328.2,4328.1,0.7188]
[1757494548497,0.5426,4328.4,4328.2,0.3111]
[1757494548795,0.4421,4328.4,4328.3,0.7206]
[1757494548991,0.6429,4328.4,4328.3,0.7206]
[1757494549298,0.9545,4328.4,4328.3,0.7206]
[1757494554895,0.4421,4328.4,4328.3,0.7206]
[1757494555094,0.3116,4328.9,4328.4,0.3111]
[1757494555299,0.5227,4328.9,4328.8,0.7206]
[1757494555601,0.5339,4329.5,4329.4,0.2101]
[1757494555895,1.49393974,4329.5,4329.4,0.5212]
[1757494556999,1.49393974,4329.5,4329.4,0.7206]
[1757494557297,0.7235,4329.5,4329.4,0.7206]
[1757494558399,0.5227,4329.5,4329.4,0.7206]
[1757494558598,0.8455,4330.0,4329.9,0.7206]
[1757494558793,0.7235,4330.0,4329.9,0.7206]
[1757494561494,0.8481,4330.0,4329.9,0.2101]
[1757494563690,0.8481,4330.0,4329.9,0.5212]
[1757494568497,0.8481,4330.0,4329.9,0.7206]
[1757494568797,0.5227,4330.0,4329.9,0.7206]
[1757494576095,0.5227,4330.0,4329.9,0.9536]
[1757494580209,0.2111,4330.0,4329.9,0.9536]
[1757494581404,0.294,4330.2,4329.9,0.9536]
[1757494581708,0.5025,4330.2,4330.1,0.7254]
[1757494582307,0.7039,4330.9,4330.8,0.5231]
[1757494582508,0.7039,4330.9,4330.8,0.7561]
[1757494584710,0.7039,4330.9,4330.8,0.233]
[1757494585612,1.35306493,4330.9,4330.8,0.233]
[1757494592815,1.35306493,4330.9,4330.4,0.3236]
[1757494593123,0.8235,4330.5,4330.4,0.5231]
[1757494593816,0.5025,4330.5,4330.4,0.7254]
[1757494594121,0.2085,4330.5,4330.4,0.7254]
[1757494594721,0.5025,4330.5,4330.4,0.7254]
[1757494597224,0.1246,4331.0,4330.4,0.7254]
[1757494597524,0.1196,4332.5,4330.4,0.7254]
[1757494597525,0.5345,4332.0,4331.9,0.5231]
[1757494597720,1.18381921,4332.0,4331.9,0.7254]
[1757494597915,1.47781921,4332.0,4331.9,0.7254]
[1757494598123,0.8285,4332.0,4331.9,0.7254]
[1757494599527,0.7039,4331.4,4331.3,0.233]
[1757494599725,0.8235,4330.5,4330.4,0.5231]
[1757494601927,0.8235,4330.5,4330.4,0.7254]
[1757494604131,0.1196,4331.5,4330.5,0.1278]
[1757494604335,0.94435989,4331.4,4330.6,0.3236]
[1757494604534,0.94435989,4331.4,4330.5,0.1278]
[1757494604535,0.4099,4331.3,4331.2,0.7254]
[1757494605032,0.7039,4331.3,4331.2,0.7254]
[1757494613836,0.1246,4332.0,4331.3,0.3107]
[1757494614036,1.37926587,4331.9,4331.8,0.2159]
[1757494614335,1.37926587,4331.9,4331.6,0.3107]
[1757494614637,0.729,4331.7,4331.6,0.5266]
[1757494614833,1.37926587,4331.7,4331.6,0.5266]
[1757494615237,1.37926587,4331.7,4331.6,0.2159]
[1757494616742,1.37926587,4331.7,4331.6,0.5266]
[1757494616929,1.37926587,4331.7,4331.6,0.7339]
[1757494617238,0.3174,4332.4,4331.7,0.3107]
[1757494617439,0.729,4332.2,4332.1,0.2159]
[1757494617739,1.37919832,4332.2,4332.1,0.5266]
[1757494618741,0.729,4332.2,4332.1,0.5266]
[1757494620241,0.729,4332.2,4332.1,0.7339]
[1757494629153,0.5316,4332.2,4332.1,0.7339]
[1757494630047,0.729,4332.9,4332.8,0.5266]
[1757494630345,1.37958188,4332.9,4332.8,0.5266]
[1757494631850,1.37958188,4332.9,4332.8,0.7339]
[1757494634144,0.729,4332.9,4332.8,0.7339]
[1757494641558,0.3516,4334.5,4333.0,0.2048]
[1757494641748,0.7233,4333.1,4333.0,0.4066]